bitfinex-derivatives/quotes_ETHF0:USTF0_20250502
["timestamp","ask_amount","ask_price","bid_price","bid_amount"]
[1746197505696,2.68901,1848.1,1847.9,2.72003]
[1746197505697,1.08187,1848.0,1847.9,2.72003]
[1746197505896,2.82867,1848.0,1847.9,2.72003]
[1746197507007,1.08193,1847.9,1847.8,1.1964]
[1746197507205,1.08198,1847.8,1847.7,5.49291]
[1746197507801,1.08216,1847.6,1847.5,4.28994]
[1746197508504,1.08216,1847.5,1847.4,3.89118]
[1746197509011,2.8289,1847.7,1847.6,1.0821]
[1746197509496,2.82884,1847.7,1847.6,1.0821]
[1746197510599,3.76,1848.1,1847.9,1.08189]
[1746197510794,3.76,1848.1,1847.8,3.2078]
[1746197510999,6.47346,1848.1,1848.0,1.08187]
[1746197512306,1.08187,1848.0,1847.9,2.70668]
[1746197513304,1.08187,1848.0,1847.9,1.6248]
[1746197513504,1.08193,1847.9,1847.8,5.50947]
[1746197513706,1.08193,1847.9,1847.8,3.96247]
[1746197514001,1.08193,1847.9,1847.8,1.2197]
[1746197514405,1.08193,1847.9,1847.8,7.23417]
[1746197514812,2.74242,1848.0,1847.9,1.08193]
[1746197515410,1.08193,1847.9,1847.8,4.02633]
[1746197515706,2.74243,1847.9,1847.8,4.02633]
[1746197516006,1.08198,1847.8,1847.7,2.27883]
[1746197516203,2.74248,1847.8,1847.7,2.27883]
[1746197517607,1.6605,1847.8,1847.7,2.27883]
[1746197517904,1.6605,1847.8,1847.7,3.91503]
[1746197518104,1.08195,1847.9,1847.8,1.08198]
[1746197518305,1.08195,1847.9,1847.8,2.71818]
[1746197520008,1.08198,1847.8,1847.7,2.27881]
[1746197520308,2.78598,1847.8,1847.7,2.27881]
[1746197520802,2.78598,1847.8,1847.7,3.95141]
[1746197521106,1.08198,1847.9,1847.8,1.08198]
[1746197521309,1.08198,1847.9,1847.8,5.96238]
[1746197521707,1.08198,1847.9,1847.8,2.75458]
[1746197522607,1.08198,1847.9,1847.8,1.6726]
[1746197522910,1.704,1848.0,1847.7,2.2788]
[1746197522911,1.08198,1847.8,1847.7,2.2788]
[1746197523205,1.704,1847.8,1847.7,2.2788]
[1746197523500,3.2078,1848.3,1847.7,13.30489]
[1746197523694,1.08179,1848.2,1848.1,1.08175]
[1746197523899,2.75479,1848.2,1848.1,1.08175]
[1746197524407,1.673,1848.2,1848.1,1.08175]
[1746197524701,1.08165,1848.4,1848.3,1.08169]
[1746197524900,1.08165,1848.4,1848.3,3.2078]
[1746197525096,2.75465,1848.4,1848.3,3.2078]
[1746197525307,2.75465,1848.4,1848.3,4.28949]
[1746197525710,2.75465,1848.4,1848.3,3.2078]
[1746197526007,2.75465,1848.4,1848.3,4.28949]
[1746197526206,1.673,1848.4,1848.3,5.98749]
[1746197526410,1.08154,1848.6,1848.5,1.08152]
[1746197526906,1.08157,1848.5,1848.4,2.8658]
[1746197527302,1.08157,1848.5,1848.4,1.2004]
[1746197527701,2.67547,1848.5,1848.4,1.2004]
[1746197528103,2.67547,1848.5,1848.4,2.28203]
[1746197528310,4.8405,1848.7,1848.6,1.08152]
[1746197528509,1.08152,1848.6,1848.5,2.74693]
[1746197529008,5.838,1849.1,1848.5,9.36923]
[1746197529009,1.08134,1849.0,1848.5,9.36923]
[1746197529213,2.67524,1849.0,1848.9,1.08132]
[1746197529910,2.67524,1849.0,1848.9,2.30322]
[1746197530507,1.5939,1849.0,1848.9,2.30322]
[1746197530712,8.60547285,1849.2,1849.1,1.08122]
[1746197530910,10.10379285,1849.2,1849.1,1.08122]
[1746197531111,1.08122,1849.1,1849.0,3.87703]
[1746197531305,2.74832,1849.1,1849.0,3.87703]
[1746197532612,8.43664285,1849.2,1849.1,1.08122]
[1746197532905,8.43664285,1849.2,1849.1,2.68362]
[1746197533113,1.08122,1849.1,1849.0,2.24924]
[1746197533309,2.74362,1849.1,1849.0,1.168]
[1746197533510,2.74362,1849.1,1849.0,2.24928]
[1746197533906,2.74362,1849.1,1849.0,1.168]
[1746197534713,1.08128,1849.0,1848.9,3.2078]
[1746197534912,3.92048,1849.0,1848.9,3.2078]
[1746197535416,3.92048,1849.0,1848.9,4.28914]
[1746197535717,4.67768285,1849.2,1849.1,1.08122]
[1746197536021,3.59647285,1849.2,1849.1,4.28902]
[1746197536516,3.59647285,1849.2,1849.1,5.95432]
[1746197536820,1.08117,1849.2,1849.1,5.95432]
[1746197537416,2.81415,1849.3,1849.2,1.08117]
[1746197537616,1.08101,1849.5,1849.2,4.36822]
[1746197537812,1.08101,1849.5,1849.4,1.08101]
[1746197538010,2.81401,1849.5,1849.4,1.08101]
[1746197538418,1.08105,1849.4,1849.3,2.74637]
[1746197538619,1.08105,1849.4,1849.3,1.6653]
[1746197538920,2.81401,1849.5,1849.4,1.08105]
[1746197539217,1.08105,1849.4,1849.3,2.74636]
[1746197539417,2.66715,1849.4,1849.3,2.74636]
[1746197539617,1.5861,1849.4,1849.3,2.74636]
[1746197539821,2.66715,1849.4,1849.3,1.6653]
[1746197540029,2.66715,1849.4,1849.3,2.74641]
[1746197540323,1.08111,1849.3,1849.2,1.08112]
[1746197540511,1.5861,1849.3,1849.2,1.08112]
[1746197540817,1.08109,1849.4,1849.3,1.08111]
[1746197541017,2.66714,1849.5,1849.4,1.08105]
[1746197541216,0.00810417,1849.6,1849.5,1.08099]
[1746197541419,0.00810417,1849.6,1849.5,4.28879]
[1746197541811,1.08903417,1849.6,1849.5,5.88589]
[1746197542011,1.08099,1849.5,1849.4,3.39711]
[1746197542215,1.7164,1849.5,1849.4,3.39711]
[1746197542411,0.00810417,1849.6,1849.5,1.08099]
[1746197542612,1.08903417,1849.6,1849.5,2.67809]
[1746197542807,1.08903417,1849.6,1849.5,1.5971]
[1746197543013,1.08111,1849.3,1849.2,3.2078]
[1746197543511,2.79748,1849.4,1849.3,1.08111]
[1746197544620,1.08111,1849.3,1849.2,5.88601]
[1746197544821,2.74571,1849.3,1849.2,3.2078]
[1746197545520,1.08122,1849.1,1849.0,3.2078]
[1746197545823,1.08128,1849.0,1848.9,3.3155]
[1746197546525,3.2078,1849.3,1849.2,1.08117]
[1746197546821,1.6646,1849.4,1849.3,1.08111]
[1746197547119,2.74565,1849.4,1849.3,1.08111]
[1746197547719,1.6646,1849.4,1849.3,1.08111]
[1746197548019,1.08101,1849.5,1849.4,1.08105]
[1746197548222,2.68001,1849.5,1849.4,2.82945]
[1746197548926,2.68001,1849.5,1849.4,1.7484]
[1746197549621,1.08105,1849.4,1849.3,3.36139]
[1746197549825,2.68005,1849.4,1849.3,3.36139]
[1746197550225,2.71052417,1849.6,1849.4,1.08102]
[1746197550522,1.08105,1849.4,1849.3,3.36139]
[1746197551026,1.08105,1849.4,1849.3,3.36141]
[1746197551421,0.00810417,1849.6,1849.5,1.08099]
[1746197551626,0.00810417,1849.6,1849.5,4.28879]
[1746197551923,0.00810417,1849.6,1849.5,1.08099]
[1746197552226,1.08903417,1849.6,1849.5,1.08099]
[1746197552528,1.69420417,1849.6,1849.5,1.08099]
[1746197552728,0.00810417,1849.6,1849.5,1.08099]
[1746197552926,0.00810417,1849.6,1849.5,4.28879]
[1746197553927,1.08903417,1849.6,1849.5,4.28879]
[1746197554329,0.00810417,1849.6,1849.5,4.28879]
[1746197555231,2.80868,1849.7,1849.6,1.08093]
[1746197555529,2.80868,1849.7,1849.6,2.81993]
[1746197555830,1.08088,1849.7,1849.6,2.81993]
[1746197557532,1.08088,1849.7,1849.6,2.81182583]
[1746197558928,1.08088,1849.7,1849.6,1.07282583]
[1746197559128,6.80427285,1850.8,1849.6,8.755]
[1746197559331,1.08042,1850.5,1850.3,3.2078]
[1746197559519,1.7331,1850.4,1850.3,1.08049]
[1746197559830,2.81356,1850.4,1850.2,3.44373]
[1746197560234,1.7536,1850.3,1850.2,3.44373]
[1746197560830,2.83412,1850.3,1850.2,5.10593]
[1746197561026,1.7536,1850.3,1850.2,5.10593]
[1746197561225,2.83412,1850.3,1850.2,5.10593]
[1746197561532,1.7536,1850.3,1850.2,5.10593]
[1746197562033,2.83412,1850.3,1850.2,5.10593]
[1746197562330,2.83412,1850.3,1850.2,3.44373]
[1746197563029,1.08058,1850.2,1850.1,4.87]
[1746197563331,2.71188,1850.2,1850.1,1.08064]
[1746197563536,1.08064,1850.1,1850.0,1.1635]
[1746197563832,1.08064,1850.1,1850.0,2.2442]
[1746197563833,1.6313,1850.1,1850.0,2.2442]
[1746197564032,1.6313,1850.1,1850.0,3.8417]
[1746197564833,1.08055,1850.3,1850.2,1.08055]
[1746197565034,1.08062,1850.2,1850.1,1.08061]
[1746197565426,1.08064,1850.1,1850.0,1.1635]
[1746197565626,1.6313,1850.1,1850.0,1.0807]
[1746197565828,1.6313,1850.1,1850.0,3.8323]
[1746197567032,2.71194,1850.1,1850.0,3.8323]
[1746197567234,1.6313,1850.1,1849.7,4.3997]
[1746197567433,1.08093,1849.6,1849.5,4.28877]
[1746197567728,1.08103,1849.5,1849.4,1.08103]
[1746197568030,1.08105,1849.4,1849.3,1.0811]
[1746197568233,2.83513,1849.5,1849.4,1.08105]
[1746197568525,1.08111,1849.3,1849.2,5.96313]
[1746197568733,1.08122,1849.2,1849.1,1.08121]
[1746197568930,6.99219,1849.5,1849.0,4.882]
[1746197569130,1.08117,1849.2,1849.1,1.08118]
[1746197569436,4.2897,1849.5,1849.0,7.58518]
[1746197569631,4.2897,1849.5,1849.0,4.882]
[1746197569932,1.08115,1849.3,1849.2,1.08115]
[1746197571234,1.08118,1849.2,1849.1,1.08118]
[1746197571434,1.08114,1849.3,1849.2,1.08113]
[1746197571733,1.08122,1849.1,1849.0,4.28906]
[1746197571935,1.08122,1849.1,1849.0,3.2078]
[1746197572235,1.08134,1848.9,1848.8,2.74406]
[1746197572627,1.08134,1848.9,1848.8,1.6627]
[1746197572834,1.08142,1848.8,1848.7,1.08143]
[1746197573328,1.08146,1848.7,1848.6,3.2078]
[1746197574338,1.08146,1848.7,1848.6,4.28932]
[1746197574537,3.755,1848.9,1848.6,3.2078]
[1746197574739,1.08146,1848.7,1848.6,6.01768]
[1746197576336,4.83633,1849.0,1848.9,1.08134]
[1746197576536,4.83633,1849.0,1848.3,1.08164]
[1746197576537,1.08165,1848.4,1848.3,1.08164]
[1746197576737,1.08169,1848.3,1848.2,5.04893]
[1746197576934,1.08169,1848.3,1848.2,45.84893]
[1746197577134,1.08169,1848.3,1848.2,44.7672]
[1746197577333,1.08169,1848.3,1848.2,2.312]
[1746197577937,1.08181,1848.1,1848.0,43.53703]
[1746197578137,1.0818,1848.2,1848.1,1.08178]
[1746197578442,1.08174,1848.3,1848.2,1.08172]
[1746197578939,1.08178,1848.2,1848.1,1.08175]
[1746197579241,1.08175,1848.3,1848.2,1.08173]
[1746197580344,1.08167,1848.4,1848.3,1.08167]
[1746197580534,6.45883,1848.6,1848.2,1.6414]
[1746197580735,1.08169,1848.3,1848.2,2.72309]
[1746197581243,1.08167,1848.4,1848.3,1.08166]
[1746197581543,1.08163,1848.4,1848.3,1.08166]
[1746197582240,2.77372,1848.5,1848.4,1.08163]
[1746197582441,6.52972,1848.5,1848.4,1.08163]
[1746197582645,8.15204,1848.5,1848.2,1.6414]
[1746197582940,1.08169,1848.3,1848.2,2.72308]
[1746197583245,1.08168,1848.4,1848.3,1.08165]
[1746197583543,2.77378,1848.4,1848.3,1.08165]
[1746197583737,1.08169,1848.3,1848.2,2.72312]
[1746197583937,1.08175,1848.2,1848.1,1.08179]
[1746197584743,1.08181,1848.2,1848.1,1.08181]
[1746197585541,4.28949,1848.4,1848.3,1.08169]
[1746197586140,5.97179,1848.4,1848.3,1.08169]
[1746197586340,2.76399,1848.4,1848.3,1.08169]
[1746197586642,1.08169,1848.3,1848.2,2.78401]
[1746197586842,1.6823,1848.3,1847.9,49.00979]
[1746197587145,1.08183,1848.1,1848.0,2.7841]
[1746197587444,2.70453,1848.1,1847.6,3.2078]
[1746197587742,2.695,1848.0,1847.9,1.08193]
[1746197588138,1.08193,1847.9,1847.8,2.79224]
[1746197588639,2.69502,1848.0,1847.9,1.08193]
[1746197588842,2.69497,1848.0,1847.9,2.79223]
[1746197589248,2.69497,1848.0,1847.9,1.08193]
[1746197591544,1.6131,1848.0,1847.9,1.08193]
[1746197591749,1.08185,1848.1,1848.0,1.08187]
[1746197591941,2.74975,1848.1,1848.0,1.08187]
[1746197592142,8.0466,1848.2,1848.1,1.08181]
[1746197592551,1.08185,1848.1,1848.0,1.08182]
[1746197592751,1.08185,1848.1,1848.0,4.90402]
[1746197592939,2.74975,1848.1,1848.0,4.90402]
[1746197594643,2.74975,1848.1,1848.0,3.8222]
[1746197594852,2.74975,1848.1,1848.0,2.2315]
[1746197595145,2.70469,1848.0,1847.5,9.1398]
[1746197595350,1.0821,1847.6,1847.5,7.0141]
[1746197595542,5.91277,1847.8,1847.6,1.08205]
[1746197595543,1.08209,1847.7,1847.6,1.08205]
[1746197595738,2.82189,1847.7,1847.6,1.08205]
[1746197596545,1.0821,1847.6,1847.5,2.81852]
[1746197596746,2.7835,1847.6,1847.5,2.81852]
[1746197596954,1.7014,1847.6,1847.5,2.81852]
[1746197597251,2.7835,1847.6,1847.5,2.81852]
[1746197598054,2.7835,1847.6,1847.5,1.08216]
[1746197598257,2.7835,1847.6,1847.0,9.688]
[1746197598258,1.08228,1847.3,1847.2,1.6704]
[1746197598552,1.08226,1847.4,1847.3,1.08226]
[1746197598946,1.08228,1847.3,1847.2,2.75269]
[1746197599150,1.08234,1847.2,1847.1,2.25847]
[1746197599654,4.83822,1847.4,1847.3,1.08228]
[1746197599849,6.54252,1847.4,1847.3,1.08228]
[1746197600251,5.4603,1847.4,1847.3,1.08228]
[1746197600448,5.4603,1847.4,1847.2,1.7372]
[1746197600648,1.08232,1847.3,1847.2,1.08233]
[1746197600959,2.78658,1847.3,1847.2,2.81953]
[1746197602454,2.78658,1847.3,1847.2,1.7372]
[1746197602651,1.08234,1847.2,1847.1,1.1761]
[1746197602851,2.72754,1847.2,1847.1,1.1761]
[1746197603048,1.08239,1847.1,1847.0,4.3925]
[1746197603356,1.08239,1847.1,1846.9,1.08249]
[1746197603357,1.08251,1847.0,1846.9,1.08249]
[1746197603957,1.08251,1846.9,1846.8,3.91822]
[1746197604449,1.08257,1846.8,1846.7,1.179]
[1746197604657,2.72777,1846.8,1846.7,1.179]
[1746197604950,4.83956,1846.9,1846.8,1.08257]
[1746197605148,4.83956,1846.9,1846.8,1.7187]
[1746197605456,4.83956,1846.9,1846.8,2.80127]
[1746197606050,1.08257,1846.8,1846.7,2.26158]
[1746197606255,1.08257,1846.8,1846.6,2.76084]
[1746197606256,1.08263,1846.7,1846.6,2.76084]
[1746197606853,2.69852,1846.8,1846.7,1.08263]
[1746197608357,1.6159,1846.8,1846.7,1.08263]
[1746197608757,2.69847,1846.8,1846.7,1.08263]
[1746197609151,1.08263,1846.7,1846.6,2.76085]
[1746197609352,1.6905,1846.7,1846.6,2.76085]
[1746197609753,2.77313,1846.7,1846.6,2.76085]
[1746197610359,2.77313,1846.7,1846.6,1.6782]
[1746197610560,1.08269,1846.6,1846.5,2.20422]
[1746197610762,2.77319,1846.6,1846.5,2.20422]
[1746197612365,1.6905,1846.6,1846.5,2.20422]
[1746197612862,2.77319,1846.6,1846.5,2.20422]
[1746197613058,1.6905,1846.6,1846.5,2.20422]
[1746197613367,2.77319,1846.6,1846.5,2.20422]
[1746197614067,2.77319,1846.6,1846.5,1.1215]
[1746197614474,2.77319,1846.6,1846.5,2.20425]
[1746197614659,2.77319,1846.6,1846.5,3.87355]
[1746197615364,8.04738,1846.9,1846.8,1.08257]
[1746197615560,2.74069,1846.8,1846.7,1.08257]
[1746197615861,2.74069,1846.8,1846.7,3.89987]
[1746197616670,12.30214,1847.0,1846.9,1.08251]
[1746197616671,10.67853,1847.0,1846.9,1.08251]
[1746197616871,12.33663,1847.0,1846.9,1.08251]
[1746197617263,8.57863,1847.0,1846.9,1.08251]
[1746197617468,8.57863,1847.0,1846.9,2.20791]
[1746197617670,2.74063,1847.0,1846.9,2.20791]
[1746197618374,1.6581,1847.0,1846.9,2.20791]
[1746197618672,6.9658,1847.1,1847.0,1.08245]
[1746197618866,6.9658,1847.1,1847.0,2.70885]
[1746197619173,3.2078,1847.1,1847.0,2.70885]
[1746197619366,2.68048,1847.2,1847.1,1.08239]
[1746197619567,2.68048,1847.2,1847.1,2.70879]
[1746197619969,3.2078,1847.3,1847.2,1.08234]
[1746197620172,3.2078,1847.3,1847.2,3.80864]
[1746197620474,5.3561,1847.4,1847.3,1.08228]
[1746197620661,5.3561,1847.4,1847.3,2.70868]
[1746197620662,1.5981,1847.4,1847.3,2.70868]
[1746197620866,1.5981,1847.4,1847.3,3.84868]
[1746197621169,1.08218,1847.5,1847.4,1.08216]
[1746197621376,1.08218,1847.5,1847.4,2.74326]
[1746197621571,2.78818,1847.5,1847.4,2.74326]
[1746197624177,2.78818,1847.5,1847.4,1.08216]
[1746197625072,1.706,1847.5,1847.4,2.79436]
[1746197625975,2.78816,1847.5,1847.4,2.79436]
[1746197626378,1.706,1847.5,1847.4,2.79436]
[1746197626575,3.2078,1847.7,1847.4,1.7122]
[1746197626768,1.7588,1847.8,1847.7,1.08204]
[1746197626976,1.08191,1848.0,1847.6,2.70517]
[1746197627275,4.83784,1848.1,1848.0,1.08187]
[1746197627476,3.756,1848.1,1848.0,1.08187]
[1746197627678,4.83781,1848.1,1848.0,1.08187]
[1746197627974,1.6079,1848.1,1848.0,1.08187]
[1746197628381,3.756,1848.3,1848.2,1.08175]
[1746197628578,3.59647285,1848.4,1848.3,1.08169]
[1746197629873,3.59647285,1848.4,1848.3,2.83579]
[1746197630281,3.59647285,1848.4,1848.3,7.83579]
[1746197630787,3.59647285,1848.4,1848.3,2.83579]
[1746197631182,1.08154,1848.6,1848.5,1.08157]
[1746197631383,1.08159,1848.5,1848.4,1.0816]
[1746197631585,1.6009,1848.6,1848.3,2.83574]
[1746197631782,1.08163,1848.5,1848.3,2.83574]
[1746197631986,1.6009,1848.4,1848.3,2.83574]
[1746197632788,1.08151,1848.7,1848.6,1.08151]
[1746197632985,1.08153,1848.6,1848.5,1.08153]
[1746197633287,2.693,1848.7,1848.6,1.0815]
[1746197633581,1.6115,1848.7,1848.6,2.7816]
[1746197635794,2.69296,1848.7,1848.6,2.7816]
[1746197637596,2.69298,1848.7,1848.6,1.08152]
[1746197638493,1.6115,1848.7,1848.6,1.08152]
[1746197638895,2.69296,1848.7,1848.6,1.08152]
[1746197640093,1.6115,1848.7,1848.6,1.08152]
[1746197640293,1.6115,1848.7,1848.5,1.1195]
[1746197640294,3.2078,1848.8,1848.7,1.08146]
[1746197640490,2.73029,1849.0,1848.9,1.08134]
[1746197640897,1.649,1849.0,1848.9,1.08134]
[1746197641101,54.0255,1849.3,1848.9,1.08134]
[1746197641102,2.73023,1849.2,1849.1,1.08119]
[1746197642702,1.649,1849.2,1849.1,1.08119]
[1746197642999,8.04292,1849.3,1849.2,1.08117]
[1746197643199,2.73122,1849.3,1849.2,1.08117]
[1746197643390,9.0458,1849.8,1849.6,1.0809]
[1746197643591,1.08097,1849.6,1849.5,1.08095]
[1746197643797,1.08105,1849.5,1849.4,1.08102]
[1746197644401,1.08098,1849.6,1849.5,1.08096]
[1746197644597,1.08099,1849.5,1849.4,2.73]
[1746197644899,1.08104,1849.5,1849.4,1.08102]
[1746197645893,1.08105,1849.5,1849.4,1.08102]
[1746197647102,1.6501,1849.6,1849.5,1.08099]
[1746197647301,2.73103,1849.6,1849.5,1.08099]
[1746197647500,1.08102,1849.5,1849.4,1.081]
[1746197647701,1.08099,1849.5,1849.4,2.78689]
[1746197647895,2.73108,1849.6,1849.5,1.08099]
[1746197648108,4.28866,1849.8,1849.7,1.08087]
[1746197648295,5.94946,1849.8,1849.7,1.08087]
[1746197648494,4.8686,1849.8,1849.7,1.08087]
[1746197648794,1.08074,1850.0,1849.9,1.0807]
[1746197648995,3.2078,1850.1,1850.0,1.0807]
[1746197648996,4.28846,1850.1,1850.0,1.0807]
[1746197649297,1.6608,1850.2,1850.1,1.08064]
[1746197649506,8.53876,1850.7,1850.1,3.2078]
[1746197649706,7.4988,1850.7,1850.3,1.0805]
[1746197650002,2.70088,1850.6,1849.9,3.2078]
[1746197650205,1.6608,1850.5,1850.0,40.8]
[1746197650499,5.25727285,1850.8,1850.4,3.2078]
[1746197650693,5.25727285,1850.8,1850.7,1.08029]
[1746197650894,5.25727285,1850.8,1850.7,3.2078]
[1746197651092,1.6608,1850.8,1850.3,1.0805]
[1746197651295,4.8686,1850.8,1850.3,4.8352]
[1746197651503,1.08037,1850.6,1850.3,4.28829]
[1746197651704,1.6634,1850.5,1850.1,4.3634]
[1746197651892,2.74381,1850.5,1850.2,2.79906]
[1746197652096,2.74381,1850.5,1850.2,1.7185]
[1746197652403,1.08021,1850.9,1850.4,3.2078]
[1746197652592,1.6634,1850.7,1850.5,1.7185]
[1746197652798,1.6634,1850.7,1850.3,2.13509]
[1746197653104,1.6634,1850.7,1850.3,2.7731]
[1746197653401,1.6634,1850.7,1850.6,1.08035]
[1746197653588,1.6634,1850.7,1850.5,1.08039]
[1746197653995,10.4154,1850.7,1850.3,1.0546]
[1746197654302,1.08049,1850.4,1850.0,45.08846]
[1746197654498,2.80043,1850.3,1850.0,1.6493]
[1746197654803,4.9277,1850.3,1849.9,1.0546]
[1746197655001,4.9277,1850.3,1849.9,2.7039]
[1746197655201,4.9277,1850.3,1850.1,1.0806]
[1746197655506,1.0806,1850.2,1849.9,3.78462]
[1746197655696,1.7199,1850.1,1849.9,2.7039]
[1746197656096,1.7199,1850.1,1849.9,3.78464]
[1746197656307,1.7199,1850.1,1850.0,1.0807]
[1746197656495,1.7199,1850.1,1849.9,2.7039]
[1746197656695,1.7199,1850.1,1850.0,1.0807]
[1746197656896,1.7199,1850.1,1849.9,3.78464]
[1746197657091,1.7199,1850.1,1849.9,2.7039]
[1746197657299,1.7199,1850.1,1849.9,3.78462]
[1746197657501,2.80056,1850.1,1849.8,1.08079]
[1746197657699,3.2078,1850.3,1850.0,1.08066]
[1746197657700,4.28834,1850.3,1850.0,1.08066]
[1746197657899,3.2078,1850.3,1850.1,1.08061]
[1746197658099,1.6095,1850.2,1850.1,1.08064]
[1746197658506,4.88,1850.6,1850.0,2.70175]
[1746197658706,1.6095,1850.4,1850.3,1.08048]
[1746197659807,9.16818,1850.6,1850.1,2.6802]
[1746197660002,1.6095,1850.5,1850.2,1.6188]
[1746197660407,2.68991,1850.5,1850.2,2.69934]
[1746197660611,2.68991,1850.5,1850.3,1.08051]
[1746197660909,2.68991,1850.5,1850.2,2.69936]
[1746197661209,1.6095,1850.5,1850.3,1.08052]
[1746197661410,3.2078,1850.6,1850.2,1.6188]
[1746197661605,3.2078,1850.6,1850.4,1.08044]
[1746197661809,1.6219,1850.5,1850.3,1.08049]
[1746197662110,1.6219,1850.5,1850.4,1.08046]
[1746197662411,4.8297,1850.5,1850.2,1.6188]
[1746197662605,1.08054,1850.3,1850.1,1.0614]
[1746197662805,1.6219,1850.2,1850.1,1.0614]
[1746197663001,1.6219,1850.2,1850.1,2.14204]
[1746197663712,1.6219,1850.2,1850.1,3.89524]
[1746197664714,3.2078,1850.3,1850.2,1.08058]
[1746197664905,3.2078,1850.3,1850.2,2.83378]
[1746197665306,7.4794,1850.6,1850.5,1.08041]
[1746197665506,1.6414,1850.6,1850.5,1.08041]
[1746197665716,8.07707,1850.8,1850.7,1.08029]
[1746197666214,8.07703,1850.8,1850.7,1.08029]
[1746197666414,8.07703,1850.8,1850.6,1.0803]
[1746197666615,1.08029,1850.7,1850.6,1.0803]
[1746197666815,1.08041,1850.5,1850.4,1.0964]
[1746197667015,3.2078,1850.6,1850.3,1.08049]
[1746197667318,1.08048,1850.4,1850.2,1.6059]
[1746197667612,1.08058,1850.2,1850.1,2.14203]
[1746197667818,1.7195,1850.3,1850.1,1.0614]
[1746197668116,1.7195,1850.3,1850.0,2.7023]
[1746197668319,1.7195,1850.3,1850.0,1.0964]
[1746197668519,1.7195,1850.3,1850.0,2.7023]
[1746197669220,3.2078,1850.1,1849.8,1.6059]
[1746197669424,1.7195,1850.0,1849.8,2.7087]
[1746197670511,1.7195,1850.0,1849.9,1.6212]
[1746197671124,1.0957,1850.3,1849.9,1.6212]
[1746197671326,1.7472,1850.2,1849.9,1.6212]
[1746197672022,1.7472,1850.2,1850.0,1.0694]
[1746197672221,3.2078,1850.3,1850.1,1.6212]
[1746197672421,3.2078,1850.3,1850.2,1.1211]
[1746197672624,4.955,1850.3,1850.2,1.1211]
[1746197673023,4.955,1850.3,1850.1,1.6212]
[1746197673728,4.955,1850.3,1849.9,1.7055]
[1746197674919,1.6869,1850.2,1849.9,1.7055]
[1746197675929,3.2078,1850.1,1849.8,2.1855]
[1746197676127,1.6336,1850.0,1849.8,2.1855]
[1746197676326,1.6336,1850.0,1849.8,1.0552]
[1746197676628,1.6336,1850.0,1849.6,3.2078]
[1746197676827,2.7525,1850.0,1849.6,3.2078]
[1746197677029,1.0774,1849.9,1849.4,3.9039]
[1746197677330,3.2078,1849.8,1849.4,3.9039]
[1746197677521,1.6336,1849.7,1849.4,3.9039]
[1746197679724,7.4716,1849.7,1849.3,3.2078]
[1746197680037,1.0859,1849.6,1849.3,3.2078]
[1746197680225,2.7846,1849.6,1849.3,3.2078]
[1746197680625,1.6987,1849.6,1849.3,3.2078]
[1746197680930,1.6987,1849.6,1849.4,2.8092]
[1746197682628,1.6987,1849.6,1849.4,1.1242]
[1746197683131,4.9065,1849.6,1849.3,1.6641]
[1746197683625,1.6517,1849.5,1849.1,1.1297]
[1746197683832,1.6517,1849.5,1849.1,2.7938]
[1746197684827,3.2078,1849.6,1849.1,6.0016]
[1746197685027,3.2078,1849.6,1849.2,1.6038]
[1746197685229,4.8119,1849.6,1849.2,1.6038]
[1746197685428,3.2078,1849.6,1849.2,1.6038]
[1746197685635,1.6041,1849.7,1849.3,3.2078]
[1746197685833,1.6041,1849.7,1849.4,2.7372]
[1746197686029,1.6041,1849.7,1849.5,1.6038]
[1746197686342,1.6041,1849.7,1849.5,2.6901]
[1746197687039,1.6041,1849.7,1849.6,1.6038]
[1746197688033,5.838,1849.9,1849.6,1.6038]
[1746197688533,5.838,1849.9,1849.5,1.0863]
[1746197688733,1.6726,1849.8,1849.5,2.6764]
[1746197688935,1.6726,1849.8,1849.6,1.5901]
[1746197689338,5.838,1849.9,1849.6,1.5901]
[1746197690332,1.6726,1849.8,1849.6,1.5901]
[1746197691643,6.9808,1850.1,1849.6,1.5901]
[1746197691845,1.6525,1850.0,1849.6,1.5901]
[1746197693044,1.6525,1850.0,1849.5,1.0863]
[1746197693341,3.2078,1849.9,1849.5,2.8002]
[1746197693544,3.2078,1849.9,1849.6,1.7139]
[1746197693941,3.2078,1849.9,1849.6,7.11845]
[1746197694145,3.2078,1849.9,1849.8,1.08081]
[1746197694535,9.64534,1850.1,1850.0,1.0807]
[1746197695038,5.87234,1850.1,1850.0,1.0807]
[1746197695231,5.87234,1850.1,1850.0,2.7569]
[1746197695833,4.7917,1850.1,1850.0,2.7569]
[1746197696146,3.2078,1850.1,1850.0,2.7569]
[1746197696337,3.59647285,1850.3,1850.2,1.08058]
[1746197696646,1.0807,1850.1,1850.0,1.08066]
[1746197696947,1.0807,1850.0,1849.9,1.08074]
[1746197697146,2.8004,1850.0,1849.9,1.08074]
[1746197697345,1.7197,1850.0,1849.9,1.08074]
[1746197697538,1.7197,1850.0,1849.9,2.73724]
[1746197697942,2.8003,1850.2,1850.1,1.08064]
[1746197699346,1.08064,1850.1,1850.0,2.73716]
[1746197699643,2.80034,1850.1,1850.0,2.73716]
[1746197700241,1.08081,1849.9,1849.8,1.08079]
[1746197700447,1.08081,1849.8,1849.7,4.88453]
[1746197700850,1.08081,1849.8,1849.7,2.1727]